fUSD/lending_fUSD_20260405
["ID","MTS","AMOUNT","RATE_DAILY","PERIOD"]
[419786856,1775379053998,-209.42,0.00015244,2]
[419786857,1775379054012,-150.0,0.00015252,2]
[419786858,1775379054028,-150.0,0.00015253,2]
[419786859,1775379054044,-1048.98200346,0.0001526,2]
[419786860,1775379054060,-150.0,0.00015263,2]
[419786861,1775379054074,-150.0,0.00015264,2]
[419786862,1775379054089,-150.0,0.00015273,2]
[419786863,1775379054104,-150.0,0.00015273,2]
[419786864,1775379054118,-150.0,0.00015277,2]
[419786865,1775379054133,-150.0,0.00015284,2]
[419786866,1775379054149,-1441.20951351,0.00015296,30]
[419786867,1775379054163,-150.0,0.00015296,2]
[419786868,1775379054177,-150.0,0.00015302,2]
[419786869,1775379054192,-150.0,0.00015302,2]
[419786870,1775379054206,-150.0,0.00015303,2]
[419786871,1775379054222,-150.0,0.00015304,2]
[419786872,1775379054238,-150.0,0.00015305,2]
[419786873,1775379054252,-150.0,0.00015307,2]
[419786874,1775379054267,-1048.98200346,0.00015315,2]
[419786875,1775379054280,-2000.0,0.00015316,2]
[419786876,1775379054295,-2000.0,0.00015316,2]
[419786877,1775379054309,-150.0,0.00015326,2]
[419786878,1775379054323,-150.0,0.00015328,2]
[419786879,1775379054337,-150.0,0.00015329,2]
[419786880,1775379054352,-150.0,0.00015331,2]
[419786881,1775379054369,-150.0,0.00015331,2]
[419786882,1775379054383,-500.0,0.00015342,2]
[419786883,1775379054398,-506.60866792,0.00015342,2]
[419786884,1775379054412,-2000.0,0.00015342,2]
[419786885,1775379054428,-2000.0,0.00015342,2]
[419786886,1775379054442,-2000.0,0.00015342,2]
[419786887,1775379054457,-932.23819105,0.00015342,2]
[419786888,1775379054471,-1500.0,0.00015342,2]
[419786889,1775379054486,-1143.48326881,0.00015342,2]
[419786890,1775379054500,-2000.0,0.00015342,2]
[419786891,1775379054516,-2000.0,0.00015342,2]
[419786892,1775379054530,-415.42400348,0.00015342,2]
[419786893,1775379054545,-1500.0,0.00015342,2]
[419786894,1775379054559,-2000.0,0.00015342,2]
[419786895,1775379054574,-693.24301277,0.00015342,2]
[419786896,1775379054588,-2000.0,0.00015342,2]
[419786897,1775379054604,-2000.0,0.00015342,2]
[419786898,1775379054619,-2000.0,0.00015342,2]
[419786899,1775379054635,-150.0,0.00015347,2]
[419786900,1775379054651,-150.0,0.00015355,2]
[419786901,1775379054665,-162.0,0.0001536,2]
[419786902,1775379054679,-150.0,0.0001536,2]
[419786903,1775379054692,-150.0,0.0001536,2]
[419786904,1775379054707,-150.0,0.0001536,2]
[419786905,1775379054721,-150.0,0.0001536,2]
[419786906,1775379054735,-481.9,0.0001536,2]
[419786907,1775379054750,-150.0,0.00015368,2]
[419786908,1775379054764,-1048.98200346,0.0001537,2]
[419786909,1775379054779,-150.0,0.00015374,2]
[419786910,1775379054792,-150.0,0.00015381,2]
[419786911,1775379054807,-200.0,0.00015389,2]
[419786912,1775379054822,-1536.04360649,0.00015389,2]
[419786913,1775379054838,-368.07161935,0.00015389,2]
[419786914,1775379054852,-799.54513345,0.00015389,2]
[419786915,1775379054868,-200.0,0.00015389,2]
[419786916,1775379054881,-187.78006525,0.00015389,2]
[419786917,1775379054895,-745.65223616,0.00015389,2]
[419786918,1775379054911,-301.00069851,0.00015389,2]
[419786919,1775379054924,-150.0,0.00015389,2]
[419786920,1775379054939,-150.0,0.00015389,2]
[419786921,1775379054953,-150.0,0.00015389,2]
[419786922,1775379054968,-150.0,0.00015392,2]
[419786923,1775379054982,-150.0,0.00015406,2]
[419786924,1775379054996,-150.0,0.00015411,2]
[419786925,1775379055010,-150.0,0.00015413,2]
[419786926,1775379055024,-161.90006799,0.00015415,2]
[419786927,1775379055038,-150.0,0.00015418,2]
[419786928,1775379055052,-150.0,0.00015418,2]
[419786929,1775379055066,-150.0,0.00015424,2]
[419786930,1775379055080,-150.0,0.00015431,2]
[419786931,1775379055093,-150.0,0.00015432,2]
[419786932,1775379055109,-150.0,0.00015432,2]
[419786933,1775379055123,-429.6676209,0.00015436,2]
[419786934,1775379055137,-150.0,0.00015443,2]
[419786935,1775379055149,-150.0,0.00015447,2]
[419786936,1775379055158,-150.0,0.00015447,2]
[419786937,1775379055168,-150.0,0.0001545,2]
[419786938,1775379055180,-1048.98200346,0.00015452,2]
[419786939,1775379055191,-500.0,0.00015452,2]
[419786940,1775379055204,-150.0,0.00015453,2]
[419786941,1775379055215,-150.0,0.00015456,2]
[419786942,1775379055224,-150.0,0.00015458,2]
[419786943,1775379055734,-150.0,0.00015467,2]
[419786944,1775379055779,-150.0,0.00015467,2]
[419786945,1775379055812,-350.0,0.00015468,2]
[419786946,1775379055824,-151.0,0.00015469,2]
[419786947,1775379055834,-150.0,0.00015474,2]
[419786948,1775379055843,-150.0,0.00015476,2]
[419786949,1775379055853,-150.0,0.00015476,2]
[419786950,1775379055862,-174.60324019,0.00015478,2]
[419786951,1775379055872,-150.0,0.00015484,2]
[419786952,1775379055882,-350.0,0.00015484,2]
[419786953,1775379055892,-150.0,0.00015488,2]
[419786954,1775379055902,-150.0,0.00015495,2]
[419786955,1775379055912,-1000.0,0.00015495,2]
[419786956,1775379055921,-167.9673,0.000155,2]
[419786957,1775379055930,-2400.0,0.000155,5]
[419786958,1775379055940,-150.0,0.00015505,2]
[419786959,1775379055949,-150.0,0.00015505,2]
[419786960,1775379055959,-1000.0,0.00015506,2]
[419786961,1775379055968,-1048.98200346,0.00015507,2]
[419786962,1775379055977,-4000.0,0.00015507,2]
[419786963,1775379055987,-150.0,0.0001551,2]
[419786964,1775379055996,-150.0,0.00015513,2]
[419786965,1775379056005,-150.0,0.00015516,2]
[419786966,1775379056014,-350.0,0.00015517,2]
[419786967,1775379056023,-150.0,0.00015517,2]
[419786968,1775379056032,-150.0,0.0001552,2]
[419786969,1775379056042,-150.0,0.0001552,2]
[419786970,1775379056051,-150.0,0.00015535,2]
[419786971,1775379056060,-150.0,0.00015535,2]
[419786972,1775379056069,-150.0,0.00015535,2]
[419786973,1775379056079,-150.0,0.00015537,2]
[419786974,1775379056090,-1000.0,0.00015545,2]
[419786975,1775379056101,-150.0,0.00015552,2]
[419786976,1775379056110,-150.0,0.00015558,2]
[419786977,1775379056119,-1000.0,0.00015558,2]
[419786978,1775379056129,-150.0,0.00015561,2]
[419786979,1775379056138,-1048.98200346,0.00015562,2]
[419786980,1775379056150,-150.0,0.00015564,2]
[419786981,1775379056160,-150.0,0.00015564,2]
[419786982,1775379056170,-182.86249593,0.00015573,2]
[419786983,1775379056180,-150.0,0.00015573,2]
[419786984,1775379056191,-177.01904729,0.00015575,2]
[419786985,1775379056202,-150.0,0.00015579,2]
[419786986,1775379056212,-150.0,0.00015583,2]
[419786987,1775379056222,-150.0,0.00015584,2]
[419786988,1775379056233,-150.0,0.00015587,2]
[419786989,1775379056243,-150.0,0.00015593,2]
[419786990,1775379056252,-150.0,0.00015593,2]
[419786991,1775379056262,-167.9673,0.000156,2]
[419786992,1775379056272,-150.0,0.000156,2]
[419786993,1775379056282,-400.0,0.000156,5]
[419786994,1775379056292,-350.0,0.00015603,2]
[419786995,1775379056302,-150.0,0.00015613,2]
[419786996,1775379056313,-150.0,0.00015616,2]
[419786997,1775379056322,-1048.98200346,0.00015616,2]
[419786998,1775379056333,-155.80569417,0.00015617,2]
[419786999,1775379056343,-150.0,0.00015621,2]
[419787000,1775379056352,-150.0,0.00015622,2]
[419787001,1775379056363,-150.0,0.00015622,2]
[419787002,1775379056374,-150.0,0.00015627,2]
[419787003,1775379056385,-150.0,0.0001563,2]
[419787004,1775379056395,-150.0,0.00015639,2]
[419787005,1775379056405,-150.0,0.00015642,2]
[419787006,1775379056419,-150.0,0.00015648,2]
[419787007,1775379056429,-150.0,0.00015651,2]
[419787008,1775379056438,-150.0,0.00015651,2]
[419787009,1775379056447,-150.0,0.00015652,2]
[419787010,1775379056457,-5888.0,0.00015652,2]
[419787011,1775379056466,-538.17315538,0.00015661,2]
[419787012,1775379056476,-150.0,0.00015663,2]
[419787013,1775379056485,-150.0,0.00015665,2]
[419787014,1775379056494,-253.09407082,0.00015668,2]
[419787015,1775379056503,-411.02,0.00015671,2]
[419787016,1775379056513,-390.47,0.00015671,2]
[419787017,1775379056522,-731.57,0.00015679,2]
[419787018,1775379056534,-1135.9,0.00015679,2]
[419787019,1775379056545,-2201.46384682,0.0001568,2]
[419787020,1775379056554,-150.0,0.0001568,2]
[419787021,1775379056565,-150.0,0.0001568,2]
[419787022,1775379056574,-150.0,0.0001568,2]
[419787023,1775379056585,-150.0,0.0001568,2]
[419787024,1775379056596,-1117.01929945,0.0001568,2]
[419787025,1775379056606,-1107.06463242,0.0001568,2]
[419787026,1775379056616,-1116.66875179,0.0001568,2]
[419787027,1775379056626,-1018.29939564,0.0001568,2]
[419787028,1775379056637,-1041.37187923,0.0001568,2]
[419787029,1775379056647,-1071.34845353,0.0001568,2]
[419787030,1775379056656,-1018.21783621,0.0001568,2]
[419787031,1775379056666,-1146.36693751,0.0001568,2]
[419787032,1775379056675,-1147.1668655,0.0001568,2]
[419787033,1775379056686,-1106.45071442,0.0001568,2]
[419787034,1775379056697,-1416.66411524,0.0001568,2]
[419787035,1775379056708,-150.0,0.00015684,2]
[419787036,1775379056718,-150.0,0.0001569,2]
[419787037,1775379056728,-150.0,0.00015693,2]
[419787038,1775379056739,-1048.98200346,0.00015699,2]
[419787039,1775379056748,-167.9673,0.000157,2]
[419787040,1775379056758,-167.9673,0.000157,2]
[419787041,1775379056767,-400.0,0.000157,5]
[419787042,1775379056776,-2000.0,0.00015701,2]
[419787043,1775379056786,-150.0,0.00015705,2]
[419787044,1775379056795,-5602.0,0.00015707,2]
[419787045,1775379056804,-150.0,0.00015709,2]
[419787046,1775379056814,-150.0,0.00015709,2]
[419787047,1775379056823,-150.0,0.00015712,2]
[419787048,1775379056832,-150.0,0.00015716,2]
[419787049,1775379056842,-5602.0,0.0001572,2]
[419787050,1775379056851,-150.0,0.00015722,2]
[419787051,1775379056860,-150.0,0.00015726,2]
[419787052,1775379056870,-150.0,0.00015733,2]
[419787053,1775379056879,-508.0,0.00015734,4]
[419787054,1775379056888,-399.3229734,0.00015735,2]
[419787055,1775379056898,-150.0,0.00015738,2]
[419787056,1775379056907,-150.0,0.00015738,2]
[419787057,1775379056916,-411.02,0.00015741,2]
[419787058,1775379056925,-150.0,0.00015742,2]
[419787059,1775379056934,-150.0,0.00015744,2]
[419787060,1775379056944,-150.0,0.00015747,2]
[419787061,1775379056955,-150.0,0.00015752,2]
[419787062,1775379056965,-1048.98200346,0.00015753,2]
[419787063,1775379056974,-5888.0,0.0001576,2]
[419787064,1775379056983,-150.0,0.00015767,2]
[419787065,1775379056992,-150.0,0.00015767,2]
[419787066,1775379057001,-150.0,0.00015768,2]
[419787067,1775379057011,-150.0,0.00015768,2]
[419787068,1775379057020,-1274.61114467,0.0001577,2]
[419787069,1775379057029,-1500.0,0.00015772,2]
[419787070,1775379057040,-1500.0,0.00015772,2]
[419787071,1775379057049,-1500.0,0.00015772,2]
[419787072,1775379057059,-1500.0,0.00015772,2]
[419787073,1775379057070,-1500.0,0.00015772,2]
[419787074,1775379057079,-418.3764967,0.00015772,2]
[419787075,1775379057091,-1500.0,0.00015772,2]
[419787076,1775379057100,-150.0,0.00015776,2]
[419787077,1775379057110,-151.39,0.00015779,2]
[419787078,1775379057121,-151.39,0.00015779,2]
[419787079,1775379057131,-151.39,0.00015779,2]
[419787080,1775379057141,-151.39,0.00015779,2]
[419787081,1775379057151,-1500.0,0.00015779,2]
[419787082,1775379057160,-1500.0,0.00015779,2]
[419787083,1775379057169,-1500.0,0.00015779,2]
[419787084,1775379057178,-1500.0,0.00015779,2]
[419787085,1775379057187,-1500.0,0.00015779,2]
[419787086,1775379057196,-1500.0,0.00015779,2]
[419787087,1775379057205,-1500.0,0.00015779,2]
[419787088,1775379057215,-1500.0,0.00015779,2]
[419787089,1775379057224,-1500.0,0.00015779,2]
[419787090,1775379057233,-1544.912597,0.00015779,2]
[419787091,1775379057244,-674.0,0.00015781,2]
[419787092,1775379057253,-1000.0,0.00015783,2]
[419787093,1775379057263,-1000.0,0.00015783,2]
[419787094,1775379057272,-1000.0,0.00015783,2]
[419787095,1775379057282,-1000.0,0.00015783,2]
[419787096,1775379057292,-1000.0,0.00015783,2]
[419787097,1775379057301,-150.0,0.00015787,2]
[419787098,1775379057312,-150.0,0.00015789,2]
[419787099,1775379057321,-150.0,0.00015791,2]
[419787100,1775379057330,-500.0,0.00015793,2]
[419787101,1775379057339,-150.0,0.00015794,2]
[419787102,1775379057350,-150.0,0.00015796,2]
[419787103,1775379057359,-150.0,0.00015796,2]
[419787104,1775379057370,-167.9673,0.000158,2]
[419787105,1775379057380,-167.9673,0.000158,2]
[419787106,1775379057390,-400.0,0.000158,5]
[419787107,1775379057400,-2000.0,0.00015801,2]
[419787108,1775379057409,-500.0,0.00015807,2]
[419787109,1775379057419,-1098.69,0.00015807,2]
[419787110,1775379057429,-500.0,0.00015807,2]
[419787111,1775379057440,-150.0,0.00015808,2]
[419787112,1775379057451,-1048.98200346,0.00015808,2]
[419787113,1775379057462,-150.0,0.00015811,2]
[419787114,1775379057474,-243.30922088,0.00015812,2]
[419787115,1775379057486,-150.0,0.00015819,2]
[419787116,1775379057496,-5888.0,0.00015824,2]
[419787117,1775379057507,-150.0,0.00015825,2]
[419787118,1775379057517,-150.0,0.00015825,2]
[419787119,1775379057528,-150.0,0.00015832,2]
[419787120,1775379057538,-440.0,0.00015837,2]
[419787121,1775379057548,-731.57,0.00015839,2]
[419787122,1775379057558,-1135.9,0.00015839,2]
[419787123,1775379057567,-500.0,0.00015839,2]
[419787124,1775379057576,-1098.69,0.00015839,2]
[419787125,1775379057586,-500.0,0.00015839,2]
[419787126,1775379057596,-500.0,0.00015839,2]
[419787127,1775379057606,-411.02,0.0001584,2]
[419787128,1775379057615,-166143.042,0.0001584,2]
[419787129,1775379057624,-97697.2091726,0.0001584,2]
[419787130,1775379057633,-150.0,0.0001584,2]
[419787131,1775379057643,-150.0,0.0001584,2]
[419787132,1775379057652,-2000.0,0.0001584,2]
[419787133,1775379057661,-2000.0,0.0001584,2]
[419787134,1775379057671,-150.0,0.00015845,2]
[419787135,1775379057680,-2000.0,0.0001585,2]
[419787136,1775379057689,-150.0,0.00015853,2]
[419787137,1775379057698,-150.0,0.00015855,2]
[419787138,1775379057707,-150.0,0.00015855,2]
[419787139,1775379057717,-150.0,0.00015861,2]
[419787140,1775379057727,-674.0,0.00015861,2]
[419787141,1775379057736,-1048.98200346,0.00015863,2]
[419787142,1775379057746,-1068.30323739,0.00015864,2]
[419787143,1775379057755,-2003.97477446,0.00015864,2]
[419787144,1775379057764,-1744.0,0.00015867,5]
[419787145,1775379057774,-2180.0,0.00015867,5]
[419787146,1775379057783,-996.49996996,0.0001587,2]
[419787147,1775379057793,-150.0,0.00015871,2]
[419787148,1775379057803,-500.0,0.00015871,2]
[419787149,1775379057812,-200.0,0.00015871,2]
[419787150,1775379057822,-500.0,0.00015872,2]
[419787151,1775379057832,-200.0,0.00015872,2]
[419787152,1775379057847,-500.0,0.00015872,2]
[419787153,1775379057856,-500.0,0.00015872,2]
[419787154,1775379057866,-500.0,0.00015872,2]
[419787155,1775379057876,-200.0,0.00015872,2]
[419787156,1775379057885,-200.0,0.00015872,2]
[419787157,1775379057895,-150.0,0.00015872,2]
[419787158,1775379057904,-150.0,0.00015874,2]
[419787159,1775379057914,-150.0,0.00015884,2]
[419787160,1775379057924,-150.0,0.00015884,2]
[419787161,1775379057933,-731.57,0.00015887,2]
[419787162,1775379057943,-1135.9,0.00015887,2]
[419787163,1775379057952,-500.0,0.0001589,2]
[419787164,1775379057962,-842.97786219,0.0001589,2]
[419787165,1775379057971,-2500.0,0.0001589,2]
[419787166,1775379057982,-2006.22994168,0.0001589,2]
[419787167,1775379057991,-2500.0,0.0001589,2]
[419787168,1775379058001,-704.40114749,0.0001589,2]
[419787169,1775379058011,-500.0,0.0001589,2]
[419787170,1775379058020,-1947.77606198,0.0001589,2]
[419787171,1775379058030,-1100.33490613,0.0001589,2]
[419787172,1775379058040,-2500.0,0.0001589,2]
[419787173,1775379058050,-2500.0,0.0001589,2]
[419787174,1775379058060,-1000.0,0.00015892,2]
[419787175,1775379058071,-150.0,0.00015893,2]
[419787176,1775379058080,-4000.0,0.00015895,2]
[419787177,1775379058090,-150.0,0.00015895,2]
[419787178,1775379058101,-150.0,0.00015897,2]
[419787179,1775379058111,-24594.73927756,0.000159,2]
[419787180,1775379058120,-167.9673,0.000159,2]
[419787181,1775379058130,-1191.29403377,0.000159,2]
[419787182,1775379058140,-301.03881414,0.000159,5]
[419787183,1775379058150,-1525.0,0.000159,5]
[419787184,1775379058160,-1525.0,0.000159,5]
[419787185,1775379058171,-1525.0,0.000159,5]
[419787186,1775379058181,-1525.0,0.000159,5]
[419787187,1775379058191,-161.0,0.000159,5]
[419787188,1775379058200,-152.0,0.000159,5]
[419787189,1775379058211,-1525.0,0.000159,5]
[419787190,1775379058221,-161.0,0.000159,5]
[419787191,1775379058230,-152.0,0.000159,5]
[419787192,1775379058240,-1525.0,0.000159,5]
[419787193,1775379058250,-161.0,0.000159,5]
[419787194,1775379058260,-152.0,0.000159,5]
[419787195,1775379058269,-1525.0,0.000159,5]
[419787196,1775379058279,-166.37279344,0.000159,5]
[419787197,1775379058289,-152.0,0.000159,5]
[419787198,1775379058299,-1525.0,0.000159,5]
[419787199,1775379058310,-152.0,0.000159,5]
[419787200,1775379058319,-1525.0,0.000159,5]
[419787201,1775379058329,-152.0,0.000159,5]
[419787202,1775379058339,-1525.0,0.000159,5]
[419787203,1775379058349,-1525.0,0.000159,5]
[419787204,1775379058358,-152.0,0.000159,5]
[419787205,1775379058369,-157.47547331,0.000159,5]
[419787206,1775379058379,-1525.0,0.000159,5]
[419787207,1775379058389,-152.0,0.000159,5]
[419787208,1775379058399,-1525.0,0.000159,5]
[419787209,1775379058410,-152.0,0.000159,5]
[419787210,1775379058420,-1525.0,0.000159,5]
[419787211,1775379058431,-152.0,0.000159,5]
[419787212,1775379058442,-1525.0,0.000159,5]
[419787213,1775379058451,-152.0,0.000159,5]
[419787214,1775379058463,-1525.0,0.000159,5]
[419787215,1775379058474,-152.0,0.000159,5]
[419787216,1775379058484,-1575.70159455,0.000159,5]
[419787217,1775379058494,-154.50523658,0.000159,5]
[419787218,1775379058504,-1105.97204875,0.000159,3]
[419787219,1775379058514,-811.94017057,0.000159,2]
[419787220,1775379058524,-40979.33701341,0.000159,2]
[419787221,1775379058534,-3225.33480354,0.000159,2]
[419787222,1775379058544,-400.0,0.000159,5]
[419787223,1775379058554,-274.57636762,0.000159,2]
[419787224,1775379058564,-31143.28476019,0.000159,2]
[419787225,1775379058574,-25000.0,0.000159,3]
[419787226,1775379058584,-306.0,0.000159,2]
[419787227,1775379058594,-2000.0,0.00015901,2]
[419787228,1775379058604,-449.71117089,0.00015903,2]
[419787229,1775379058613,-226.0,0.00015903,2]
[419787230,1775379058624,-150.0,0.00015904,2]
[419787231,1775379058634,-370.52,0.00015905,2]
[419787232,1775379058644,-500.0,0.00015909,2]
[419787233,1775379058654,-1098.69,0.00015909,2]
[419787234,1775379058664,-500.0,0.00015909,2]
[419787235,1775379058674,-674.0,0.00015912,2]
[419787236,1775379058684,-150.0,0.00015913,2]
[419787237,1775379058695,-150.0,0.00015913,2]
[419787238,1775379058705,-150.0,0.00015916,2]
[419787239,1775379058715,-150.0,0.00015923,2]
[419787240,1775379058725,-150.0,0.0001593,2]
[419787241,1775379058735,-150.0,0.00015936,2]
[419787242,1775379058745,-200.0,0.00015937,2]
[419787243,1775379058755,-1592.87721993,0.00015937,2]
[419787244,1775379058765,-829.12830338,0.00015937,2]
[419787245,1775379058776,-200.0,0.00015937,2]
[419787246,1775379058786,-194.72792766,0.00015937,2]
[419787247,1775379058795,-369.5568607,0.00015937,2]
[419787248,1775379058806,-150.0,0.00015937,2]
[419787249,1775379058816,-150.0,0.00015942,2]
[419787250,1775379058826,-150.0,0.00015942,2]
[419787251,1775379058836,-150.0,0.00015947,2]
[419787252,1775379058845,-150.0,0.00015948,2]
[419787253,1775379058856,-262.0,0.00015955,2]
[419787254,1775379058872,-1337.87763051,0.00015956,2]
[419787255,1775379058882,-440.0,0.00015956,2]
[419787256,1775379058893,-150.0,0.00015958,2]
[419787257,1775379058903,-1000.0,0.0001596,2]
[419787258,1775379058914,-1000.0,0.0001596,2]
[419787259,1775379058924,-1000.0,0.0001596,2]
[419787260,1775379058935,-1000.0,0.0001596,2]
[419787261,1775379058945,-1000.0,0.0001596,2]
[419787262,1775379058955,-1000.0,0.0001596,2]
[419787263,1775379058965,-1000.0,0.0001596,2]
[419787264,1775379058975,-1000.0,0.0001596,2]
[419787265,1775379058986,-266.452,0.0001596,2]
[419787266,1775379058998,-1000.0,0.00015966,2]
[419787267,1775379059008,-150.0,0.00015968,2]
[419787268,1775379059019,-150.0,0.00015971,2]
[419787269,1775379059030,-150.0,0.00015971,2]
[419787270,1775379059373,-500.0,0.00015973,2]
[419787271,1775379059383,-500.13152132,0.00015973,2]
[419787272,1775379059393,-500.0,0.00015973,2]
[419787273,1775379059403,-500.0,0.00015973,2]
[419787274,1775379059412,-500.0,0.00015973,2]
[419787275,1775379059422,-500.0,0.00015973,2]
[419787276,1775379059431,-500.0,0.00015973,2]
[419787277,1775379059440,-500.0,0.00015973,2]
[419787278,1775379059450,-163.60261744,0.00015973,2]
[419787279,1775379059459,-500.0,0.00015973,2]
[419787280,1775379059469,-403.93256284,0.00015973,2]
[419787281,1775379059478,-500.0,0.00015973,2]
[419787282,1775379059488,-150.0,0.00015974,2]
[419787283,1775379059498,-731.57,0.00015975,2]
[419787284,1775379059508,-731.57,0.00015975,2]
[419787285,1775379059519,-1135.9,0.00015975,2]
[419787286,1775379059529,-1135.9,0.00015975,2]
[419787287,1775379059538,-500.0,0.00015975,2]
[419787288,1775379059549,-1098.69,0.00015975,2]
[419787289,1775379059562,-484.03247685,0.00015975,2]
[419787290,1775379059572,-500.0,0.00015975,2]
[419787291,1775379059582,-500.0,0.00015975,2]
[419787292,1775379059591,-331084.3740925,0.00015976,2]
[419787293,1775379059600,-14453.8404501,0.00015976,2]
[419787294,1775379059609,-493.04790266,0.00015978,2]
[419787295,1775379059619,-440.0,0.00015978,2]
[419787296,1775379059630,-150.0,0.00015979,2]
[419787297,1775379059640,-396.13977044,0.00015983,2]
[419787298,1775379059651,-440.0,0.00015988,2]
[419787299,1775379059661,-842.97786219,0.0001599,2]
[419787300,1775379059672,-1233.89014824,0.0001599,2]
[419787301,1775379059683,-150.0,0.00015996,2]
[419787302,1775379059692,-683.0,0.00015996,2]
[419787303,1775379059701,-150.0,0.00015996,2]
[419787304,1775379059711,-151.9752,0.00015997,2]
[419787305,1775379059720,-151.0,0.00015997,2]
[419787306,1775379059730,-482.15643993,0.00015997,2]
[419787307,1775379059739,-666.0,0.00015999,2]
[419787308,1775379059748,-666.0,0.00015999,2]
[419787309,1775379059758,-731.57,0.00015999,2]
[419787310,1775379059767,-731.57,0.00015999,2]
[419787311,1775379059779,-731.57,0.00015999,2]
[419787312,1775379059788,-731.57,0.00015999,2]
[419787313,1775379059798,-731.57,0.00015999,2]
[419787314,1775379059807,-731.57,0.00015999,2]
[419787315,1775379059816,-731.57,0.00015999,2]
[419787316,1775379059826,-731.57,0.00015999,2]
[419787317,1775379059836,-731.57,0.00015999,2]
[419787318,1775379059846,-731.62178076,0.00015999,2]
[419787319,1775379059855,-1135.9,0.00015999,2]
[419787320,1775379059865,-1135.9,0.00015999,2]
[419787321,1775379059876,-1135.9,0.00015999,2]
[419787322,1775379059887,-1135.9,0.00015999,2]
[419787323,1775379059897,-1135.9,0.00015999,2]
[419787324,1775379059907,-1135.9,0.00015999,2]
[419787325,1775379059917,-1135.9,0.00015999,2]
[419787326,1775379059926,-1135.9,0.00015999,2]
[419787327,1775379059936,-1135.9,0.00015999,2]
[419787328,1775379059946,-1136.09278756,0.00015999,2]
[419787329,1775379059956,-500.0,0.00015999,2]
[419787330,1775379059966,-500.0,0.00015999,2]
[419787331,1775379059975,-500.0,0.00015999,2]
[419787332,1775379059986,-500.0,0.00015999,2]
[419787333,1775379059995,-500.0,0.00015999,2]
[419787334,1775379060005,-500.0,0.00015999,2]
[419787335,1775379060014,-500.0,0.00015999,2]
[419787336,1775379060026,-1098.69,0.00015999,2]
[419787337,1775379060036,-1098.69,0.00015999,2]
[419787338,1775379060046,-1098.69,0.00015999,2]
[419787339,1775379060056,-1098.69,0.00015999,2]
[419787340,1775379060066,-1098.69,0.00015999,2]
[419787341,1775379060075,-1098.69,0.00015999,2]
[419787342,1775379060085,-1098.69,0.00015999,2]
[419787343,1775379060095,-1098.7309854,0.00015999,2]
[419787344,1775379060105,-500.0,0.00015999,2]
[419787345,1775379060115,-500.0,0.00015999,2]
[419787346,1775379060125,-500.0,0.00015999,2]
[419787347,1775379060136,-500.0,0.00015999,2]
[419787348,1775379060146,-500.0,0.00015999,2]
[419787349,1775379060156,-500.0,0.00015999,2]
[419787350,1775379060168,-500.0,0.00015999,2]
[419787351,1775379060178,-500.0,0.00015999,2]
[419787352,1775379060188,-500.0,0.00015999,2]
[419787353,1775379060198,-500.0,0.00015999,2]
[419787354,1775379060207,-500.0,0.00015999,2]
[419787355,1775379060217,-568.42076477,0.00015999,2]